fUST/lending_fUST_20241108
["ID","MTS","AMOUNT","RATE_DAILY","PERIOD"]
[341656835,1731067839974,-500.0,0.00021917,2]
[341656836,1731067839984,-500.0,0.00021917,2]
[341656837,1731067839993,-849.91,0.00021917,2]
[341656838,1731067840003,-500.0,0.00021917,2]
[341656839,1731067840012,-500.0,0.00021917,2]
[341656840,1731067840022,-500.0,0.00021917,2]
[341656841,1731067840031,-500.0,0.00021917,2]
[341656842,1731067840041,-500.0,0.00021917,2]
[341656843,1731067840050,-500.0,0.00021917,2]
[341656844,1731067840059,-500.0,0.00021917,2]
[341656845,1731067840069,-500.0,0.00021917,2]
[341656846,1731067840078,-158.39432771,0.00022191,2]
[341656848,1731067840087,-500.0,0.00022191,2]
[341656849,1731067840096,-500.0,0.00022191,2]
[341656851,1731067840105,-4157.84,0.00022191,2]
[341656853,1731067840114,-592.08143046,0.00022191,2]
[341656855,1731067840124,-526.89,0.00022191,2]
[341656857,1731067840143,-500.0,0.00022191,2]
[341656859,1731067840163,-3706.66,0.00022191,2]
[341656861,1731067840173,-500.0,0.00022191,2]
[341656863,1731067840183,-1229.1,0.00022191,2]
[341656865,1731067840192,-500.0,0.00022191,2]
[341656867,1731067840201,-500.0,0.00022191,2]
[341656869,1731067840210,-899.35,0.00022191,2]
[341656871,1731067840219,-500.0,0.00022191,2]
[341656873,1731067840228,-500.0,0.00022191,2]
[341656875,1731067840238,-500.0,0.00022191,2]
[341656877,1731067840247,-500.0,0.00022191,2]
[341656879,1731067840256,-500.0,0.00022191,2]
[341656881,1731067840265,-849.91,0.00022191,2]
[341656883,1731067840274,-230.03204724,0.00022191,2]
[341656885,1731067840283,-500.0,0.00022191,2]
[341656887,1731067840293,-500.0,0.00022191,2]
[341656889,1731067840302,-303.97830581,0.00022191,2]
[341656891,1731067840312,-500.0,0.00022464,2]
[341656893,1731067840321,-500.0,0.00022464,2]
[341656895,1731067840331,-500.0,0.00022465,2]
[341656897,1731067840341,-500.0,0.00022465,2]
[341656899,1731067840355,-4157.84,0.00022465,2]
[341656901,1731067840368,-526.89,0.00022465,2]
[341656903,1731067840378,-500.0,0.00022465,2]
[341656905,1731067840387,-3706.66,0.00022465,2]
[341656908,1731067840405,-500.0,0.00022465,2]
[341656911,1731067840417,-1229.1,0.00022465,2]
[341656913,1731067840426,-500.0,0.00022465,2]
[341656915,1731067840436,-500.0,0.00022465,2]
[341656917,1731067840445,-899.35,0.00022465,2]
[341656919,1731067840456,-500.0,0.00022465,2]
[341656921,1731067840465,-500.0,0.00022465,2]
[341656923,1731067840475,-500.0,0.00022465,2]
[341656925,1731067840484,-500.0,0.00022465,2]
[341656927,1731067840493,-500.0,0.00022465,2]
[341656929,1731067840503,-849.91,0.00022465,2]
[341656931,1731067840512,-500.0,0.00022465,2]
[341656933,1731067840521,-12511.00969247,0.00022639,2]
[341656935,1731067840531,-500.0,0.00022738,2]
[341656937,1731067840541,-500.0,0.00022739,2]
[341656939,1731067840557,-4157.84,0.00022739,2]
[341656941,1731067840567,-526.89,0.00022739,2]
[341656943,1731067840576,-500.0,0.00022739,2]
[341656945,1731067840586,-3706.66,0.00022739,2]
[341656947,1731067840597,-500.0,0.00022739,2]
[341656949,1731067840607,-1229.1,0.00022739,2]
[341656951,1731067840617,-500.0,0.00022739,2]
[341656953,1731067840627,-899.35,0.00022739,2]
[341656956,1731067840636,-500.0,0.00022739,2]
[341656958,1731067840646,-613.50405375,0.00022739,2]
[341656959,1731067840655,-205.0146299,0.00022739,2]
[341656960,1731067840664,-500.0,0.00022739,2]
[341656961,1731067840674,-500.0,0.00022739,2]
[341656962,1731067840683,-849.91,0.00022739,2]
[341656963,1731067840693,-500.0,0.00022739,2]
[341656964,1731067840703,-1000.0,0.00022817,2]
[341656965,1731067840713,-257.08972701,0.00023012,2]
[341656966,1731067840722,-500.0,0.00023013,2]
[341656967,1731067840732,-4157.84,0.00023013,2]
[341656968,1731067840742,-526.89,0.00023013,2]
[341656969,1731067840751,-500.0,0.00023013,2]
[341656970,1731067840760,-3706.66,0.00023013,2]
[341656971,1731067840770,-500.0,0.00023013,2]
[341656972,1731067840783,-1229.1,0.00023013,2]
[341656973,1731067840792,-500.0,0.00023013,2]
[341656974,1731067840802,-899.35,0.00023013,2]
[341656975,1731067840811,-500.0,0.00023013,2]
[341656976,1731067840822,-500.0,0.00023013,2]
[341656977,1731067840832,-849.91,0.00023013,2]
[341656978,1731067840841,-500.0,0.00023013,2]
[341656979,1731067840852,-267.7554485,0.00023286,2]
[341656980,1731067840861,-455.38446807,0.00023286,2]
[341656981,1731067840871,-500.0,0.00023287,2]
[341656982,1731067840880,-4157.84,0.00023287,2]
[341656983,1731067840889,-526.89,0.00023287,2]
[341656984,1731067840899,-500.0,0.00023287,2]
[341656985,1731067840908,-3706.66,0.00023287,2]
[341656986,1731067840918,-500.0,0.00023287,2]
[341656987,1731067840927,-1229.1,0.00023287,2]
[341656988,1731067840936,-899.35,0.00023287,2]
[341656989,1731067840945,-500.0,0.00023287,2]
[341656990,1731067840956,-500.0,0.00023287,2]
[341656991,1731067840965,-500.0,0.00023287,2]
[341656992,1731067840975,-849.91,0.00023287,2]
[341656993,1731067840984,-500.0,0.00023287,2]
[341656994,1731067840994,-153.0,0.00023479,2]
[341656995,1731067841003,-201.907137,0.00023561,7]
[341656996,1731067841012,-201.907137,0.00023561,7]
[341656997,1731067841022,-500.0,0.00023561,2]
[341656998,1731067841032,-4157.84,0.00023561,2]
[341656999,1731067841042,-168.029752,0.00023561,7]
[341657000,1731067841051,-168.029752,0.00023561,7]
[341657001,1731067841060,-526.89,0.00023561,2]
[341657002,1731067841069,-500.0,0.00023561,2]
[341657003,1731067841078,-151.0,0.00023561,7]
[341657004,1731067841088,-3706.66,0.00023561,2]
[341657005,1731067841097,-500.0,0.00023561,2]
[341657006,1731067841107,-218.472539,0.00023561,7]
[341657007,1731067841116,-1229.1,0.00023561,2]
[341657008,1731067841125,-218.472539,0.00023561,7]
[341657009,1731067841134,-899.35,0.00023561,2]
[341657010,1731067841144,-500.0,0.00023561,2]
[341657011,1731067841153,-279.780568,0.00023561,7]
[341657012,1731067841162,-279.780568,0.00023561,7]
[341657013,1731067841171,-500.0,0.00023561,2]
[341657014,1731067841181,-500.0,0.00023561,2]
[341657015,1731067841191,-849.91,0.00023561,2]
[341657016,1731067841201,-500.0,0.00023561,2]
[341657017,1731067841211,-420.0,0.00023817,2]
[341657018,1731067841220,-500.0,0.00023835,2]
[341657019,1731067841230,-4157.84,0.00023835,2]
[341657020,1731067841239,-526.89,0.00023835,2]
[341657022,1731067841249,-500.0,0.00023835,2]
[341657024,1731067841258,-3706.66,0.00023835,2]
[341657026,1731067841268,-500.0,0.00023835,2]
[341657027,1731067841277,-1229.1,0.00023835,2]
[341657029,1731067841287,-899.35,0.00023835,2]
[341657031,1731067841296,-500.0,0.00023835,2]
[341657032,1731067841306,-500.0,0.00023835,2]
[341657033,1731067841316,-500.0,0.00023835,2]
[341657034,1731067841326,-849.91,0.00023835,2]
[341657036,1731067841336,-500.0,0.00023835,2]
[341657037,1731067841346,-201.907137,0.00023887,7]
[341657038,1731067841357,-201.907137,0.00023887,7]
[341657039,1731067841367,-168.029752,0.00023887,7]
[341657040,1731067841377,-168.029752,0.00023887,7]
[341657041,1731067841386,-151.0,0.00023887,7]
[341657042,1731067841396,-218.472539,0.00023887,7]
[341657044,1731067841405,-218.472539,0.00023887,7]
[341657046,1731067841414,-279.780568,0.00023887,7]
[341657047,1731067841423,-279.780568,0.00023887,7]
[341657049,1731067841433,-30000.0,0.00024,2]
[341657050,1731067841442,-2129.23048073,0.00024099,2]
[341657051,1731067841453,-411.57979023,0.00024099,2]
[341657052,1731067841463,-229.4716027,0.00024099,2]
[341657053,1731067841472,-20346.76819486,0.000241,2]
[341657055,1731067841487,-14606.19201372,0.000241,2]
[341657057,1731067841496,-151.0,0.000241,7]
[341657059,1731067841506,-248.293301,0.000241,7]
[341657060,1731067841515,-248.293301,0.000241,7]
[341657061,1731067841525,-151.0,0.000241,7]
[341657062,1731067841535,-171.195646,0.000241,7]
[341657063,1731067841545,-171.195646,0.000241,7]
[341657064,1731067841555,-263.121962,0.000241,7]
[341657065,1731067841565,-263.121962,0.000241,7]
[341657066,1731067841574,-750.444699,0.000241,7]
[341657067,1731067841583,-750.444699,0.000241,7]
[341657068,1731067841593,-306.186877,0.000241,7]
[341657070,1731067841603,-306.186877,0.000241,7]
[341657071,1731067841612,-151.0,0.000241,7]
[341657073,1731067841622,-151.0,0.000241,7]
[341657075,1731067841631,-151.0,0.000241,7]
[341657077,1731067841640,-201.907137,0.000241,7]
[341657078,1731067841650,-201.907137,0.000241,7]
[341657079,1731067841659,-168.029752,0.000241,7]
[341657081,1731067841668,-168.029752,0.000241,7]
[341657083,1731067841677,-295.727496,0.000241,7]
[341657084,1731067841686,-218.472539,0.000241,7]
[341657085,1731067841696,-218.472539,0.000241,7]
[341657086,1731067841706,-279.780568,0.000241,7]
[341657087,1731067841716,-279.780568,0.000241,7]
[341657088,1731067841726,-420.0,0.00024108,2]
[341657089,1731067841735,-398.94256561,0.00024109,2]
[341657090,1731067841745,-569.36,0.00024109,2]
[341657091,1731067841755,-2531.09,0.00024109,2]
[341657092,1731067841764,-500.0,0.00024109,2]
[341657093,1731067841779,-4157.84,0.00024109,2]
[341657094,1731067841795,-526.89,0.00024109,2]
[341657095,1731067841805,-500.0,0.00024109,2]
[341657096,1731067841814,-3706.66,0.00024109,2]
[341657097,1731067841824,-500.0,0.00024109,2]
[341657098,1731067841834,-1229.1,0.00024109,2]
[341657099,1731067841844,-899.35,0.00024109,2]
[341657100,1731067841854,-500.0,0.00024109,2]
[341657101,1731067841864,-500.0,0.00024109,2]
[341657102,1731067841873,-500.0,0.00024109,2]
[341657103,1731067841884,-849.91,0.00024109,2]
[341657104,1731067841894,-500.0,0.00024109,2]
[341657105,1731067841903,-359.0,0.00024164,2]
[341657106,1731067841913,-150.112233,0.000242,9]
[341657107,1731067841922,-500.0,0.00024276,2]
[341657108,1731067841931,-500.0,0.00024276,2]
[341657109,1731067841941,-151.0,0.00024383,7]
[341657110,1731067841951,-248.293301,0.00024383,7]
[341657111,1731067841961,-248.293301,0.00024383,7]
[341657112,1731067841971,-151.0,0.00024383,7]
[341657113,1731067841980,-171.195646,0.00024383,7]
[341657114,1731067841989,-171.195646,0.00024383,7]
[341657115,1731067841999,-263.121962,0.00024383,7]
[341657116,1731067842009,-263.121962,0.00024383,7]
[341657117,1731067842018,-750.444699,0.00024383,7]
[341657118,1731067842028,-569.36,0.00024383,2]
[341657119,1731067842038,-750.444699,0.00024383,7]
[341657120,1731067842172,-306.186877,0.00024383,7]
[341657121,1731067842182,-306.186877,0.00024383,7]
[341657122,1731067842192,-151.0,0.00024383,7]
[341657123,1731067842201,-151.0,0.00024383,7]
[341657124,1731067842214,-151.0,0.00024383,7]
[341657125,1731067842224,-2531.09,0.00024383,2]
[341657126,1731067842233,-201.907137,0.00024383,7]
[341657127,1731067842243,-201.907137,0.00024383,7]
[341657128,1731067842253,-500.0,0.00024383,2]
[341657129,1731067842263,-4157.84,0.00024383,2]
[341657130,1731067842272,-168.029752,0.00024383,7]
[341657131,1731067842281,-168.029752,0.00024383,7]
[341657132,1731067842291,-526.89,0.00024383,2]
[341657133,1731067842300,-500.0,0.00024383,2]
[341657134,1731067842310,-3706.66,0.00024383,2]
[341657135,1731067842319,-500.0,0.00024383,2]
[341657136,1731067842329,-218.472539,0.00024383,7]
[341657137,1731067842339,-1229.1,0.00024383,2]
[341657138,1731067842349,-218.472539,0.00024383,7]
[341657139,1731067842358,-899.35,0.00024383,2]
[341657140,1731067842367,-279.780568,0.00024383,7]
[341657141,1731067842377,-500.0,0.00024383,2]
[341657142,1731067842386,-279.780568,0.00024383,7]
[341657143,1731067842396,-500.0,0.00024383,2]
[341657144,1731067842406,-500.0,0.00024383,2]
[341657145,1731067842415,-849.91,0.00024383,2]
[341657146,1731067842425,-500.0,0.00024383,2]
[341657147,1731067842434,-150.112233,0.000244,6]
[341657148,1731067842444,-184.596246,0.00024482,2]
[341657149,1731067842454,-615.0,0.000245,2]
[341657150,1731067842463,-151.0,0.00024557,7]
[341657151,1731067842472,-248.293301,0.00024557,7]
[341657152,1731067842482,-248.293301,0.00024557,7]
[341657153,1731067842491,-171.195646,0.00024557,7]
[341657154,1731067842501,-171.195646,0.00024557,7]
[341657155,1731067842511,-263.121962,0.00024557,7]
[341657156,1731067842520,-263.121962,0.00024557,7]
[341657157,1731067842529,-750.444699,0.00024557,7]
[341657158,1731067842538,-750.444699,0.00024557,7]
[341657159,1731067842547,-306.186877,0.00024557,7]
[341657160,1731067842557,-306.186877,0.00024557,7]
[341657161,1731067842566,-151.0,0.00024557,7]
[341657162,1731067842575,-241.964128,0.00024557,7]
[341657163,1731067842584,-151.0,0.00024557,7]
[341657164,1731067842593,-201.907137,0.00024557,7]
[341657165,1731067842602,-201.907137,0.00024557,7]
[341657166,1731067842612,-168.029752,0.00024557,7]
[341657167,1731067842621,-168.029752,0.00024557,7]
[341657168,1731067842630,-218.472539,0.00024557,7]
[341657169,1731067842639,-218.472539,0.00024557,7]
[341657170,1731067842648,-279.780568,0.00024557,7]
[341657171,1731067842658,-279.780568,0.00024557,7]
[341657172,1731067842667,-151.0,0.00024557,7]
[341657173,1731067842676,-151.0,0.00024557,7]
[341657174,1731067842686,-154.544194,0.00024557,7]
[341657175,1731067842695,-154.544194,0.00024557,7]
[341657176,1731067842705,-569.36,0.00024657,2]
[341657177,1731067842715,-2531.09,0.00024657,2]
[341657178,1731067842724,-500.0,0.00024657,2]
[341657179,1731067842733,-4157.84,0.00024657,2]
[341657180,1731067842743,-526.89,0.00024657,2]
[341657181,1731067842753,-500.0,0.00024657,2]
[341657182,1731067842762,-3706.66,0.00024657,2]
[341657183,1731067842773,-500.0,0.00024657,2]
[341657184,1731067842783,-1229.1,0.00024657,2]
[341657185,1731067842792,-899.35,0.00024657,2]
[341657186,1731067842802,-588.79458872,0.00024657,2]
[341657187,1731067842811,-500.0,0.00024657,2]
[341657188,1731067842820,-435.52461551,0.00024657,2]
[341657189,1731067842830,-849.91,0.00024657,2]
[341657190,1731067842840,-605.27072495,0.00024657,2]
[341657191,1731067842851,-150.0,0.00024658,2]
[341657192,1731067842861,-200.0,0.00024658,15]
[341657193,1731067842870,-151.0,0.00024658,7]
[341657194,1731067842879,-248.293301,0.00024658,7]
[341657195,1731067842888,-248.293301,0.00024658,7]
[341657196,1731067842898,-171.195646,0.00024658,7]
[341657197,1731067842907,-171.195646,0.00024658,7]
[341657198,1731067842916,-263.121962,0.00024658,7]
[341657199,1731067842926,-263.121962,0.00024658,7]
[341657201,1731067842935,-750.444699,0.00024658,7]
[341657202,1731067842944,-750.444699,0.00024658,7]
[341657204,1731067842955,-306.186877,0.00024658,7]
[341657205,1731067842965,-306.186877,0.00024658,7]
[341657206,1731067842974,-151.0,0.00024658,7]
[341657208,1731067842984,-151.0,0.00024658,7]
[341657210,1731067842993,-201.907137,0.00024658,7]
[341657211,1731067843003,-201.907137,0.00024658,7]
[341657212,1731067843011,-168.029752,0.00024658,7]
[341657213,1731067843021,-168.029752,0.00024658,7]
[341657214,1731067843031,-218.472539,0.00024658,7]
[341657215,1731067843040,-218.472539,0.00024658,7]
[341657216,1731067843050,-279.780568,0.00024658,7]
[341657218,1731067843059,-279.780568,0.00024658,7]
[341657220,1731067843069,-500.0,0.00024658,2]
[341657222,1731067843079,-500.0,0.00024658,2]
[341657223,1731067843088,-500.0,0.00024658,2]
[341657225,1731067843099,-500.0,0.00024658,2]
[341657227,1731067843109,-500.0,0.00024658,2]
[341657229,1731067843119,-500.0,0.00024658,2]
[341657231,1731067843128,-500.0,0.00024658,2]
[341657233,1731067843137,-500.0,0.00024658,2]
[341657234,1731067843147,-500.0,0.00024658,2]
[341657236,1731067843157,-500.0,0.00024658,2]
[341657238,1731067843167,-500.0,0.00024658,2]
[341657240,1731067843176,-500.0,0.00024658,2]
[341657242,1731067843185,-500.0,0.00024658,2]
[341657243,1731067843194,-500.0,0.00024658,2]
[341657244,1731067843204,-500.0,0.00024658,2]
[341657245,1731067843214,-500.0,0.00024658,2]
[341657246,1731067843222,-500.0,0.00024658,2]
[341657247,1731067843231,-500.0,0.00024658,2]
[341657248,1731067843240,-500.0,0.00024658,2]
[341657249,1731067843250,-500.0,0.00024658,2]
[341657251,1731067843259,-474.0785722,0.00024658,2]
[341657253,1731067843269,-500.0,0.00024658,2]
[341657255,1731067843277,-500.0,0.00024658,2]
[341657256,1731067843287,-500.0,0.00024658,2]
[341657257,1731067843296,-500.0,0.00024658,2]
[341657259,1731067843307,-500.0,0.00024658,2]
[341657261,1731067843316,-500.0,0.00024658,2]
[341657262,1731067843326,-500.0,0.00024658,2]
[341657263,1731067843336,-500.0,0.00024658,2]
[341657264,1731067843346,-500.0,0.00024658,2]
[341657265,1731067843355,-500.0,0.00024658,2]
[341657266,1731067843364,-500.0,0.00024658,2]
[341657267,1731067843374,-500.0,0.00024658,2]
[341657268,1731067843384,-500.0,0.00024658,2]
[341657270,1731067843394,-500.0,0.00024658,2]
[341657272,1731067843403,-500.0,0.00024658,2]
[341657274,1731067843413,-500.0,0.00024658,2]
[341657275,1731067843421,-500.0,0.00024658,2]
[341657276,1731067843431,-500.0,0.00024658,2]
[341657277,1731067843440,-500.0,0.00024658,2]
[341657279,1731067843450,-650.1917998,0.00024658,2]
[341657280,1731067843461,-500.0,0.00024658,2]
[341657282,1731067843471,-500.0,0.00024658,2]
[341657284,1731067843480,-500.0,0.00024658,2]
[341657285,1731067843490,-150.112233,0.000247,10]
[341657286,1731067843499,-249.6506195,0.00024712,2]
[341657288,1731067843509,-151.0,0.00024908,3]
[341657290,1731067843518,-171.195646,0.00024931,7]
[341657292,1731067843527,-171.195646,0.00024931,7]
[341657293,1731067843537,-263.121962,0.00024931,7]
[341657294,1731067843547,-263.121962,0.00024931,7]
[341657295,1731067843557,-750.444699,0.00024931,7]
[341657296,1731067843566,-569.36,0.00024931,2]
[341657297,1731067843575,-750.444707,0.00024931,7]
[341657298,1731067843585,-306.186877,0.00024931,7]
[341657299,1731067843594,-306.186879,0.00024931,7]
[341657300,1731067843604,-151.0,0.00024931,7]
[341657301,1731067843613,-151.0,0.00024931,7]
[341657302,1731067843623,-2531.09,0.00024931,2]
[341657303,1731067843633,-201.907137,0.00024931,7]
[341657304,1731067843643,-201.907137,0.00024931,7]
[341657305,1731067843652,-500.0,0.00024931,2]
[341657306,1731067843661,-4157.84,0.00024931,2]
[341657307,1731067843670,-168.029752,0.00024931,7]
[341657308,1731067843679,-168.029752,0.00024931,7]
[341657309,1731067843689,-526.89,0.00024931,2]
[341657310,1731067843698,-500.0,0.00024931,2]
[341657311,1731067843709,-3706.66,0.00024931,2]
[341657312,1731067843717,-500.0,0.00024931,2]
[341657313,1731067843727,-218.472539,0.00024931,7]
[341657314,1731067843736,-1229.1,0.00024931,2]
[341657315,1731067843745,-218.472539,0.00024931,7]
[341657316,1731067843754,-899.35,0.00024931,2]
[341657317,1731067843763,-279.780568,0.00024931,7]
[341657318,1731067843775,-279.780568,0.00024931,7]
[341657319,1731067843785,-500.0,0.00024931,2]
[341657320,1731067843794,-151.0,0.00024931,7]
[341657321,1731067843803,-165.975959,0.00024931,7]
[341657322,1731067843814,-849.91,0.00024931,2]
[341657323,1731067843823,-154.544194,0.00024931,7]
[341657324,1731067843833,-154.544194,0.00024931,7]
[341657325,1731067843842,-151.0,0.00024973,7]
[341657326,1731067843852,-248.293301,0.00024973,7]
[341657327,1731067843862,-248.293301,0.00024973,7]
[341657328,1731067843871,-1150.0,0.00025,2]
[341657329,1731067843880,-130334.16096414,0.00025,2]
[341657330,1731067843889,-1200.0,0.00025,7]
[341657331,1731067843899,-1961.53,0.00025,2]
[341657332,1731067843908,-151.0,0.00025,7]
[341657333,1731067843917,-248.293301,0.00025,7]
[341657334,1731067843927,-248.293301,0.00025,7]
[341657335,1731067843935,-171.195646,0.00025,7]
[341657336,1731067843945,-171.19565143,0.00025,7]
[341657337,1731067843955,-263.121962,0.00025,7]
[341657338,1731067843964,-263.121967,0.00025,7]
[341657339,1731067843974,-201.907137,0.00025,7]
[341657340,1731067843983,-201.907137,0.00025,7]
[341657341,1731067843992,-168.029752,0.00025,7]
[341657342,1731067844002,-168.029752,0.00025,7]
[341657343,1731067844011,-302.84859387,0.00025,2]
[341657344,1731067844021,-151.0,0.00025,7]
[341657345,1731067844030,-151.0,0.00025,7]
[341657346,1731067844040,-218.472539,0.00025,7]
[341657347,1731067844049,-218.472539,0.00025,7]
[341657348,1731067844058,-152.058206,0.00025,7]
[341657349,1731067844067,-152.058206,0.00025,7]
[341657350,1731067844077,-151.0,0.00025,7]
[341657351,1731067844086,-151.0,0.00025,7]
[341657352,1731067844095,-279.780568,0.00025,7]
[341657353,1731067844105,-279.780568,0.00025,7]
[341657354,1731067844114,-151.0,0.00025,7]
[341657355,1731067844123,-406.307474,0.00025,7]
[341657356,1731067844133,-406.307474,0.00025,7]
[341657357,1731067844143,-154.544194,0.00025,7]
[341657358,1731067844152,-154.544194,0.00025,7]
[341657359,1731067844162,-538.352093,0.00025,7]
[341657360,1731067844172,-3000.0,0.000252,2]
[341657361,1731067844181,-3000.0,0.000252,2]
[341657362,1731067844191,-569.36,0.00025205,2]
[341657363,1731067844200,-2531.09,0.00025205,2]
[341657364,1731067844212,-500.0,0.00025205,2]
[341657365,1731067844221,-4157.84,0.00025205,2]
[341657366,1731067844231,-526.89,0.00025205,2]
[341657367,1731067844240,-500.0,0.00025205,2]
[341657368,1731067844249,-3706.66,0.00025205,2]
[341657369,1731067844259,-500.0,0.00025205,2]
[341657370,1731067844269,-1229.1,0.00025205,2]
[341657371,1731067844279,-899.35,0.00025205,2]
[341657372,1731067844288,-500.0,0.00025205,2]
[341657373,1731067844297,-849.91,0.00025205,2]
[341657374,1731067844307,-151.0,0.0002521,7]
[341657375,1731067844317,-248.293301,0.0002521,7]
[341657376,1731067844326,-248.293305,0.0002521,7]
[341657377,1731067844336,-3000.0,0.0002521,2]
[341657378,1731067844345,-3000.0,0.0002521,2]
[341657379,1731067844354,-201.907137,0.0002521,7]
[341657380,1731067844364,-201.907137,0.0002521,7]
[341657381,1731067844374,-168.029752,0.0002521,7]
[341657382,1731067844383,-168.029752,0.0002521,7]
[341657383,1731067844393,-218.472539,0.0002521,7]
[341657384,1731067844403,-218.472539,0.0002521,7]
[341657385,1731067844413,-279.780568,0.0002521,7]
[341657386,1731067844422,-279.780568,0.0002521,7]
[341657387,1731067844432,-3000.0,0.0002522,2]
[341657388,1731067844442,-3000.0,0.0002522,2]
[341657389,1731067844453,-3000.0,0.0002523,2]
[341657390,1731067844464,-3000.0,0.0002523,2]
[341657391,1731067844473,-3000.0,0.0002524,2]
[341657392,1731067844483,-3000.0,0.0002524,2]
[341657393,1731067844494,-3000.0,0.0002525,2]
[341657394,1731067844503,-3000.0,0.0002525,2]
[341657395,1731067844514,-302.84859387,0.0002525,2]
[341657396,1731067844524,-151.0,0.0002525,7]
[341657397,1731067844534,-151.0,0.0002525,7]
[341657398,1731067844544,-152.058206,0.0002525,7]
[341657399,1731067844554,-152.058206,0.0002525,7]
[341657400,1731067844564,-151.0,0.0002525,7]
[341657401,1731067844574,-151.0,0.0002525,7]
[341657402,1731067844584,-151.0,0.0002525,7]
[341657403,1731067844594,-406.307474,0.0002525,7]
[341657404,1731067844605,-406.307474,0.0002525,7]
[341657405,1731067844615,-154.544194,0.0002525,7]
[341657406,1731067844626,-154.544194,0.0002525,7]
[341657407,1731067844636,-538.352093,0.0002525,7]
[341657408,1731067844646,-151.0,0.00025257,3]
[341657409,1731067844656,-3000.0,0.0002526,2]
[341657410,1731067844666,-3000.0,0.0002526,2]
[341657411,1731067844675,-3000.0,0.0002527,2]
[341657412,1731067844686,-3000.0,0.0002527,2]
[341657413,1731067844696,-3000.0,0.0002528,2]
[341657414,1731067844707,-3000.0,0.0002528,2]
[341657415,1731067844716,-201.907137,0.0002528,7]
[341657416,1731067844726,-201.90713,0.0002528,7]
[341657417,1731067844735,-168.029752,0.0002528,7]
[341657418,1731067844745,-168.029752,0.0002528,7]
[341657419,1731067844755,-218.472539,0.0002528,7]
[341657420,1731067844765,-218.472544,0.0002528,7]
[341657421,1731067844779,-279.780568,0.0002528,7]
[341657422,1731067844788,-279.780559,0.0002528,7]
[341657423,1731067844797,-3000.0,0.0002529,2]
[341657424,1731067844807,-3000.0,0.0002529,2]
[341657425,1731067844817,-3000.0,0.000253,2]
[341657426,1731067844826,-3000.0,0.000253,2]
[341657427,1731067844835,-3000.0,0.0002531,2]
[341657428,1731067844845,-3000.0,0.0002531,2]
[341657429,1731067844952,-501.33729046,0.00025313,9]
[341657430,1731067844963,-3000.0,0.0002532,2]
[341657431,1731067844973,-3000.0,0.0002532,2]
[341657432,1731067844983,-3000.0,0.0002533,2]
[341657433,1731067844992,-3000.0,0.0002533,2]
[341657434,1731067845001,-3000.0,0.0002534,2]
[341657435,1731067845011,-3000.0,0.0002534,2]
[341657436,1731067845020,-3000.0,0.0002535,2]
[341657437,1731067845030,-3000.0,0.0002535,2]
[341657438,1731067845040,-151.0,0.0002535,7]
[341657439,1731067845049,-151.0,0.0002535,7]